bitfinex-derivatives/quotes_ETHF0:USTF0_20251008
["timestamp","ask_amount","ask_price","bid_price","bid_amount"]
[1759889189702,0.00035357,4482.4,4482.3,6.38117]
[1759889193210,0.74455357,4482.4,4482.3,1.38117]
[1759889193511,3.5861565,4482.4,4482.3,0.40137]
[1759889194104,3.5861565,4482.4,4482.3,1.15817]
[1759889194304,0.00035357,4482.4,4482.3,0.83227]
[1759889194707,0.20975357,4482.4,4482.3,0.83227]
[1759889194912,0.20975357,4482.4,4482.3,1.15817]
[1759889195802,3.66801762,4482.4,4482.3,0.40137]
[1759889198813,0.7442,4482.2,4482.1,3.2078]
[1759889199015,0.9672,4482.2,4482.1,3.2078]
[1759889199215,3.89082574,4482.2,4482.1,3.2078]
[1759889199519,3.89082574,4482.2,4482.1,3.60919]
[1759889199720,0.7315,4481.7,4481.6,3.2078]
[1759889200016,3.80418158,4481.7,4481.6,3.2078]
[1759889200513,0.40146,4481.3,4481.1,0.40147]
[1759889200718,0.7315,4481.2,4481.1,0.40147]
[1759889200918,3.59296648,4481.2,4481.1,0.40147]
[1759889201115,0.40148,4481.1,4481.0,3.2078]
[1759889201321,0.5524,4481.0,4480.9,0.00257995]
[1759889201520,0.8602,4481.0,4480.9,0.00257995]
[1759889201719,3.94862333,4481.0,4480.9,0.00257995]
[1759889202719,3.81992333,4481.0,4480.9,0.73997995]
[1759889205122,3.81992333,4481.0,4480.9,0.52037995]
[1759889205323,3.94862333,4481.0,4480.9,0.00257995]
[1759889207521,4.35011333,4481.0,4480.9,0.40407995]
[1759889209719,3.94862333,4481.0,4480.9,0.40407995]
[1759889209921,3.81992333,4481.0,4480.9,0.92187995]
[1759889210420,3.81992333,4481.0,4480.9,0.40407995]
[1759889210923,3.94862333,4481.0,4480.9,0.40407995]
[1759889211921,3.81992333,4481.0,4480.9,1.14147995]
[1759889212524,2.86542333,4481.0,4480.9,5.10903894]
[1759889213923,0.223,4481.1,4481.0,0.40149]
[1759889214125,0.7315,4481.6,4481.5,0.8654]
[1759889214328,0.9545,4481.6,4481.5,1.26685]
[1759889214626,3.55174074,4481.6,4481.5,1.26685]
[1759889215129,4.26098074,4481.6,4481.5,0.40145]
[1759889216832,0.7315,4481.4,4481.3,0.40146]
[1759889217034,0.7315,4481.4,4481.3,0.91926]
[1759889217237,3.59398462,4481.4,4481.3,0.91926]
[1759889217633,3.28618462,4481.4,4481.3,1.13496]
[1759889217831,3.07628462,4481.4,4481.3,1.13496]
[1759889218129,3.2078,4482.0,4481.9,1.15611]
[1759889218334,3.2078,4482.0,4481.9,1.91586899]
[1759889218535,6.39623001,4482.0,4481.9,1.91586899]
[1759889218930,0.33775357,4482.4,4481.9,1.91586899]
[1759889219237,0.00035357,4482.4,4482.3,0.75975899]
[1759889219433,0.00035357,4482.4,4482.3,0.98275899]
[1759889219737,0.00035357,4482.4,4482.3,5.98275899]
[1759889220635,0.00035357,4482.4,4482.3,6.16406936]
[1759889221037,0.00035357,4482.4,4482.3,5.40431037]
[1759889225043,0.00035357,4482.4,4482.3,5.18131037]
[1759889225243,0.00035357,4482.4,4482.3,5.40431037]
[1759889227250,0.2229,4483.8,4483.7,0.427]
[1759889227454,0.4421,4483.8,4483.7,0.7547]
[1759889227651,3.32588252,4483.8,4483.7,0.7547]
[1759889227850,2.88378252,4484.2,4483.6,0.40125]
[1759889227851,0.3374,4484.7,4484.2,0.4012]
[1759889228046,0.2229,4484.5,4484.4,0.94458]
[1759889228248,3.8729,4484.9,4484.8,0.427]
[1759889228448,0.66667195,4484.9,4484.8,0.7547]
[1759889228645,3.18621514,4484.9,4484.8,0.7547]
[1759889228855,2.96321514,4484.9,4484.8,0.7547]
[1759889229053,3.40531514,4484.9,4484.8,0.7547]
[1759889229353,3.74271514,4484.9,4484.8,0.7547]
[1759889230555,0.4615,4484.5,4484.4,0.00230498]
[1759889230855,3.75986134,4484.5,4484.4,0.00230498]
[1759889231251,3.75986134,4484.5,4484.4,0.21360498]
[1759889231453,3.29836134,4484.5,4484.4,3.96480498]
[1759889231654,2.85626134,4484.5,4484.4,3.96480498]
[1759889232053,3.17958272,4484.8,4484.7,0.7547]
[1759889232250,0.2229,4484.8,4484.7,0.7547]
[1759889232453,2.95668272,4484.8,4484.7,1.15586]
[1759889232954,0.00157195,4484.9,4484.7,0.82816]
[1759889233150,0.00157195,4484.9,4484.8,0.9777]
[1759889233552,3.9873,4485.9,4485.8,0.539]
[1759889233758,3.9873,4485.9,4485.8,0.3277]
[1759889233955,6.90772457,4485.9,4485.8,0.539]
[1759889234456,6.90987057,4485.9,4485.8,0.539]
[1759889235450,6.13037057,4485.9,4485.8,0.7547]
[1759889235652,6.35327057,4485.9,4485.8,0.7547]
[1759889236959,2.92257057,4485.9,4485.8,0.7547]
[1759889237462,3.14547057,4485.9,4485.8,0.7547]
[1759889238059,3.36467057,4485.9,4485.8,0.7547]
[1759889240264,3.70207057,4485.9,4485.8,0.7547]
[1759889241261,3.36467057,4485.9,4485.8,0.7547]
[1759889242367,3.14547057,4485.9,4485.8,0.7547]
[1759889243368,3.36467057,4485.9,4485.8,0.7547]
[1759889244069,3.70207057,4485.9,4485.8,0.7547]
[1759889244363,3.36467057,4485.9,4485.8,0.7547]
[1759889245068,3.36467057,4485.9,4485.8,1.51272868]
[1759889245469,0.002146,4485.9,4485.8,1.73572868]
[1759889245664,3.2078,4486.6,4486.5,0.9517]
[1759889245863,0.4421,4487.1,4487.0,0.40095]
[1759889246164,3.10965381,4487.1,4487.0,1.27935]
[1759889246569,3.66625381,4487.1,4487.0,1.27935]
[1759889246762,3.66857211,4487.1,4487.0,1.27935]
[1759889247962,3.33117211,4487.1,4487.0,1.27935]
[1759889248564,0.0023183,4487.1,4487.0,1.27935]
[1759889248964,0.0023183,4487.1,4487.0,1.50235]
[1759889250869,0.7442183,4487.1,4487.0,1.27935]
[1759889251069,0.7442183,4487.1,4487.0,1.16295]
[1759889251770,0.8335683,4487.1,4486.8,0.309]
[1759889252063,0.7419,4486.9,4486.8,0.5297]
[1759889252269,0.4303,4486.9,4486.7,3.2078]
[1759889252465,0.7419,4486.8,4486.7,3.82948]
[1759889252669,0.7419,4486.8,4486.7,4.13848]
[1759889252967,3.63979169,4486.8,4486.7,4.13848]
[1759889255273,3.63979169,4486.8,4486.7,4.34858]
[1759889255469,2.89789169,4486.8,4486.7,4.34858]
[1759889255877,1.3681683,4487.1,4487.0,1.14075]
[1759889256174,4.7049866,4487.1,4487.0,1.14075]
[1759889256670,4.3040366,4487.1,4487.0,1.14075]
[1759889256866,3.3391366,4487.1,4487.0,1.27345]
[1759889257575,0.50515179,4487.1,4487.0,1.27345]
[1759889258275,0.0023183,4487.1,4487.0,1.27345]
[1759889258573,0.0023183,4487.1,4487.0,6.27345]
[1759889258769,0.0196817,4487.9,4487.8,1.14068]
[1759889258971,0.0196817,4487.9,4487.8,1.36368]
[1759889259273,2.95325613,4487.9,4487.8,1.36368]
[1759889259476,3.45577579,4487.9,4487.8,1.36368]
[1759889259875,3.45767869,4487.9,4487.8,1.36589074]
[1759889260474,3.66777869,4487.9,4487.8,1.36589074]
[1759889260875,4.18657869,4487.9,4487.8,0.40309074]
[1759889262173,4.18657869,4487.9,4487.8,0.00221074]
[1759889262382,4.40957869,4487.9,4487.8,0.00221074]
[1759889262579,9.40957869,4487.9,4487.8,0.00221074]
[1759889262779,0.7289,4487.2,4487.1,0.40094]
[1759889262981,1.85535966,4487.2,4487.1,0.40094]
[1759889263180,1.85535966,4487.2,4486.9,3.2078]
[1759889263181,1.12985,4487.0,4486.9,3.2078]
[1759889263478,4.47710666,4487.0,4486.9,3.2078]
[1759889263678,4.47710666,4487.0,4486.9,3.20993918]
[1759889265072,9.82420666,4487.0,4486.9,0.00213918]
[1759889265383,9.42325666,4487.0,4486.9,0.00213918]
[1759889265578,4.42325666,4487.0,4486.9,0.00213918]
[1759889265978,4.07615666,4487.0,4486.9,0.75823918]
[1759889266282,4.42325666,4487.0,4486.9,0.00213918]
[1759889267278,9.42325666,4487.0,4486.9,0.00213918]
[1759889269086,4.07615666,4487.0,4486.9,0.75823918]
[1759889269388,4.29915666,4487.0,4486.9,0.22463918]
[1759889270282,4.42325666,4487.0,4486.9,0.00213918]
[1759889272985,4.82420666,4487.0,4486.9,0.00213918]
[1759889276586,9.82420666,4487.0,4486.9,0.00213918]
[1759889276785,0.40103,4486.2,4486.1,0.40103]
[1759889276986,1.85544966,4486.2,4486.1,0.40103]
[1759889277293,4.3070832,4486.2,4486.1,0.40103]
[1759889277793,4.3070832,4486.2,4486.1,0.40279224]
[1759889278590,4.81113735,4486.2,4486.1,0.00176224]
[1759889280396,0.7254,4485.4,4485.3,3.4134]
[1759889280686,3.61013009,4485.4,4485.3,3.2078]
[1759889280891,3.61013009,4485.4,4485.3,3.6089]
[1759889281091,3.61013009,4485.4,4485.3,4.1541]
[1759889281495,3.61013009,4485.4,4485.3,3.21053816]
[1759889281686,4.11409594,4485.4,4485.3,0.00273816]
[1759889283690,0.4163,4484.7,4484.2,3.2078]
[1759889283992,0.7254,4484.3,4484.2,3.8146]
[1759889284196,0.7254,4484.3,4484.2,4.1542]
[1759889284398,3.67187157,4484.3,4484.2,4.367]
[1759889284898,3.6741052,4484.3,4484.2,4.36901857]
[1759889286093,3.8971052,4484.3,4484.2,4.36901857]
[1759889286293,3.8971052,4484.3,4484.2,0.00201857]
[1759889286793,3.8971052,4484.3,4483.0,3.2078]
[1759889286794,0.7254,4483.1,4483.0,3.2078]
[1759889287093,3.84497869,4483.1,4483.0,3.2078]
[1759889287692,3.84497869,4483.1,4483.0,0.00235665]
[1759889288502,0.85,4482.0,4481.9,3.2078]
[1759889288699,0.3091,4481.9,4481.8,0.40142]
[1759889288894,0.9484,4481.9,4481.8,0.40142]
[1759889289200,3.88083549,4481.9,4481.8,1.15942]
[1759889289399,3.57173549,4481.9,4481.8,1.16122072]
[1759889289899,0.1246,4484.0,4482.7,0.758]
[1759889289900,0.4163,4482.8,4482.7,0.758]
[1759889290199,0.2118,4482.8,4482.7,0.758]
[1759889290394,3.5681619,4482.8,4482.7,0.758]
[1759889290592,3.8772619,4482.8,4482.7,0.758]
[1759889291890,3.8772619,4482.8,4482.7,0.3396]
[1759889292095,0.7254,4482.4,4482.3,0.94657]
[1759889292491,3.66678949,4482.4,4482.3,0.94657]
[1759889293097,3.35768949,4482.4,4482.3,1.15937]
[1759889293299,3.15318949,4482.4,4482.3,1.15937]
[1759889293701,3.35768949,4482.4,4482.3,1.15937]
[1759889293902,3.66678949,4482.4,4482.3,1.15937]
[1759889294205,0.7254,4482.3,4482.2,0.40138]
[1759889294501,0.7254,4482.3,4482.0,1.1594]
[1759889294502,0.7254,4482.1,4482.0,1.1594]
[1759889294698,0.6393,4482.1,4482.0,1.2913]
[1759889294898,3.57991603,4482.1,4482.0,1.2913]
[1759889295193,3.35691603,4482.1,4482.0,1.2913]
[1759889295403,3.88901603,4482.1,4482.0,1.2913]
[1759889296800,3.88901603,4482.1,4482.0,0.4014]
[1759889297205,0.85,4482.0,4481.9,0.4014]
[1759889297502,3.78182535,4482.0,4481.9,0.4014]
[1759889297802,3.78182535,4482.0,4481.9,0.607]
[1759889298002,3.78182535,4482.0,4481.9,0.4014]
[1759889298204,3.78182535,4482.0,4481.9,0.9466]
[1759889301302,4.12271,4483.0,4482.9,0.60692]
[1759889301503,4.55751,4483.0,4482.9,0.94652]
[1759889301706,7.0598488,4483.0,4482.9,0.94652]
[1759889302207,7.2381588,4483.0,4482.9,0.94652]
[1759889302412,7.4611588,4483.0,4482.9,0.94652]
[1759889302810,7.4611588,4483.0,4482.9,0.60692]
[1759889303502,7.4611588,4483.0,4482.9,0.94652]
[1759889304305,7.4611588,4483.0,4482.9,0.60692]
[1759889305111,7.4611588,4483.0,4482.9,0.94652]
[1759889305508,7.4611588,4483.0,4482.9,0.60692]
[1759889305704,7.4611588,4483.0,4482.9,0.40132]
[1759889305909,7.5872588,4483.0,4482.9,0.40132]
[1759889306206,7.3642588,4483.0,4482.9,0.40132]
[1759889306411,7.5872588,4483.0,4482.9,0.40132]
[1759889306908,7.0598488,4483.0,4482.9,0.94652]
[1759889307210,7.1859488,4483.0,4482.9,0.40132]
[1759889308311,8.08805493,4483.0,4482.9,0.40132]
[1759889308502,3.82074493,4483.0,4482.9,1.14932]
[1759889308710,3.8499488,4483.0,4482.9,1.14932]
[1759889309408,2.9036488,4483.0,4482.9,1.14932]
[1759889309608,3.1266488,4483.0,4482.9,1.14932]
[1759889309912,0.4344,4483.0,4482.9,1.14932]
[1759889310113,3.36316667,4483.0,4482.9,1.14932]
[1759889310407,3.57146667,4483.0,4482.9,1.14932]
[1759889310609,3.87846667,4483.0,4482.9,1.14932]
[1759889311115,4.37981627,4483.0,4482.9,1.14932]
[1759889312308,4.37981627,4483.0,4482.9,0.748]
[1759889312515,0.40136,4482.5,4482.3,0.3225]
[1759889312807,0.40136,4482.5,4481.8,0.00180072]
[1759889312808,0.7267,4481.9,4481.8,0.00180072]
[1759889313010,0.7267,4480.8,4480.7,4.14582]
[1759889313205,0.9497,4480.8,4480.7,3.7443]
[1759889313407,3.91069883,4480.8,4480.7,3.7443]
[1759889313603,3.91069883,4480.8,4480.7,3.4218]
[1759889313803,3.91069883,4480.8,4480.7,3.2078]
[1759889314009,3.91275017,4480.8,4480.7,3.2106851]
[1759889314211,4.41440086,4480.8,4480.7,3.2106851]
[1759889315014,4.41440086,4480.8,4480.7,0.0028851]
[1759889315313,4.81591086,4480.8,4480.7,0.0028851]
[1759889317303,0.7267,4480.2,4480.1,3.2078]
[1759889317512,1.45135069,4480.2,4480.1,3.2078]
[1759889317704,4.29620192,4480.2,4480.1,3.2078]
[1759889318304,0.4197,4480.1,4479.6,3.2078]
[1759889318509,0.7267,4479.7,4479.6,3.42369332]
[1759889318705,0.9497,4479.7,4479.6,3.42369332]
[1759889318910,3.81174361,4479.7,4479.6,3.74619332]
[1759889319106,3.81174361,4479.7,4479.6,0.00189332]
[1759889320620,3.81174361,4479.7,4479.6,0.53239332]
[1759889322619,3.81174361,4479.7,4479.6,0.00189332]
[1759889323218,4.31368375,4479.7,4479.6,0.00189332]
[1759889324217,3.58874361,4479.7,4479.6,0.20739332]
[1759889324430,2.86204361,4479.7,4479.6,3.96279332]
[1759889324617,3.08264361,4479.7,4479.6,3.96279332]
[1759889324816,0.2206,4479.7,4479.6,3.96279332]
[1759889325023,3.0876846,4479.7,4479.6,3.96279332]
[1759889325425,3.3064846,4479.7,4479.6,0.75499332]
[1759889325625,3.6455846,4479.7,4479.6,0.53239332]
[1759889326022,3.6455846,4479.7,4479.6,0.75499332]
[1759889326627,3.6455846,4479.7,4479.6,0.00189332]
[1759889327824,3.8685846,4479.7,4479.6,0.00189332]
[1759889330026,4.2701946,4479.7,4479.6,0.00189332]
[1759889332826,3.0876846,4479.7,4479.6,1.15661332]
[1759889333026,3.3106846,4479.7,4479.6,1.15661332]
[1759889333229,3.5294846,4479.7,4479.6,1.15661332]
[1759889333527,3.8685846,4479.7,4479.6,1.15661332]
[1759889334026,4.2701946,4479.7,4479.6,0.00189332]
[1759889336929,4.2701946,4479.7,4479.6,0.20739332]
[1759889336930,3.8685846,4479.7,4479.6,0.20739332]
[1759889337641,3.8685846,4479.7,4479.6,0.54079332]
[1759889338029,3.8685846,4479.7,4479.6,0.75769332]
[1759889339742,3.8685846,4479.7,4479.6,1.15931332]
[1759889341238,4.37156543,4479.7,4479.6,1.15931332]
[1759889341537,4.77317543,4479.7,4479.6,1.15931332]
[1759889341744,4.77317543,4479.7,4479.6,0.40351332]
[1759889342939,4.77317543,4479.7,4479.6,0.00189332]
[1759889343739,0.40167,4479.0,4478.7,0.3334]
[1759889343945,0.40167,4479.0,4478.8,0.40169]
[1759889343946,1.49779312,4478.9,4478.8,0.40169]
[1759889344146,4.46642266,4478.9,4478.8,0.40169]
[1759889344646,0.7707,4478.6,4478.5,0.95451]
[1759889344946,3.92533548,4478.6,4478.5,1.17419427]
[1759889345147,3.92533548,4478.6,4478.5,2.06725361]
[1759889347048,3.15463548,4478.6,4478.5,1.30679427]
[1759889347249,3.36653548,4478.6,4478.5,1.30679427]
[1759889347548,3.58843548,4478.6,4478.5,1.30679427]
[1759889347742,3.92533548,4478.6,4478.5,0.95729427]
[1759889348051,3.92533548,4478.6,4478.5,1.17419427]
[1759889348245,3.36653548,4478.6,4478.5,1.30679427]
[1759889349241,1.17234,4479.4,4479.3,0.4363]
[1759889349439,1.17234,4479.4,4479.0,0.75366]
[1759889349440,0.40166,4479.1,4479.0,0.75366]
[1759889349648,4.75023596,4479.1,4479.0,0.95446]
[1759889350250,4.75023596,4479.1,4479.0,0.5528]
[1759889350452,0.7386,4478.7,4478.6,0.4017]
[1759889350651,1.3954,4478.7,4478.6,0.4017]
[1759889350945,4.2501248,4478.7,4478.6,0.9545]
[1759889351352,4.2501248,4478.7,4478.6,0.4017]
[1759889351651,3.8484248,4478.7,4478.6,0.7351]
[1759889351851,3.5115248,4478.7,4478.6,1.1714]
[1759889352151,3.8484248,4478.7,4478.6,1.17141]
[1759889352353,4.2501248,4478.7,4478.6,1.17141]
[1759889352652,4.2501248,4478.7,4478.6,0.95451]
[1759889353549,3.8484248,4478.7,4478.6,1.17141]
[1759889354849,3.0777248,4478.7,4478.6,1.17141]
[1759889355250,3.5115248,4478.7,4478.6,1.17141]
[1759889355656,3.0666248,4478.7,4478.6,1.17141]
[1759889355852,3.2896248,4478.7,4478.6,1.17141]
[1759889356057,3.8484248,4478.7,4478.6,1.17141]
[1759889357357,3.5115248,4478.7,4478.6,1.17141]
[1759889358553,0.223,4478.7,4478.6,1.17141]
[1759889359756,0.3369,4479.3,4479.2,0.40165]
[1759889360055,1.17232,4479.6,4479.5,0.7697]
[1759889360258,0.61352,4479.5,4479.4,0.40163]
[1759889360562,4.5989976,4479.5,4479.4,0.40163]
[1759889360954,4.1973776,4479.5,4479.4,1.17133]
[1759889361155,4.5989976,4479.5,4479.4,1.17133]
[1759889361857,4.1973776,4479.5,4479.4,1.17133]
[1759889363360,4.5989976,4479.5,4479.4,1.17133]
[1759889364861,4.5989976,4479.5,4479.4,0.95443]
[1759889365264,4.4203776,4479.5,4479.4,1.17133]
[1759889365561,4.8219976,4479.5,4479.4,1.17133]
[1759889366163,4.4203776,4479.5,4479.4,1.17133]
[1759889366761,3.6496776,4479.5,4479.4,1.17133]
[1759889366955,3.8615776,4479.5,4479.4,1.17133]
[1759889367158,3.8615776,4479.5,4479.4,1.93150771]
[1759889368660,2.92202941,4479.5,4479.4,1.93150771]
[1759889369060,3.29943154,4479.6,4479.5,1.31192]
[1759889369260,0.94781854,4479.6,4479.5,1.31192]
[1759889369558,3.80425008,4479.6,4479.5,1.31192]
[1759889369759,4.32835008,4479.6,4479.5,1.31192]
[1759889371266,3.82353154,4479.6,4479.5,1.31192]
[1759889371558,3.58421198,4479.6,4479.5,1.31192]
[1759889372159,3.07943154,4479.6,4479.5,1.31192]
[1759889372760,3.07943154,4479.6,4479.5,4.51972]
[1759889373166,0.40156,4480.2,4480.0,0.5716]
[1759889373360,0.40156,4480.2,4480.1,0.7742]
[1759889373361,0.84456,4480.2,4480.1,0.7742]
[1759889373561,4.24438174,4480.2,4480.1,0.7742]
[1759889373763,3.84282174,4480.2,4480.1,1.17577]
[1759889373959,0.50471402,4480.2,4480.1,1.17577]
[1759889374158,3.42985134,4480.8,4480.7,1.17572]
[1759889374365,0.72959433,4480.8,4480.7,1.93589771]
[1759889374564,3.6269715,4480.8,4480.7,1.93589771]
[1759889375063,3.12242851,4480.8,4480.7,1.93589771]
[1759889375468,3.62671037,4480.8,4480.7,1.93589771]
[1759889376167,0.5063332,4480.8,4480.7,2.1168686]
[1759889376367,0.4322,4480.5,4480.4,0.62454]
[1759889376564,0.7441,4480.5,4480.4,1.18684]
[1759889376871,0.7441,4480.5,4480.4,1.93591771]
[1759889378273,0.4322,4480.5,4480.4,1.93591771]
[1759889379068,0.22,4480.5,4480.4,1.93591771]
[1759889379370,0.31395134,4480.8,4480.7,1.17572]
[1759889379371,0.22205134,4480.8,4480.7,1.17572]
[1759889379571,0.44505134,4480.8,4480.7,1.17572]
[1759889379772,3.85283057,4480.8,4480.7,0.7742]
[1759889380672,4.39853057,4480.8,4480.7,0.7742]
[1759889381974,4.39853057,4480.8,4480.7,1.17572]
[1759889382176,4.80004057,4480.8,4480.7,1.17572]
[1759889383469,4.39853057,4480.8,4480.7,1.17572]
[1759889383675,4.46124057,4480.8,4480.7,1.17572]
[1759889383875,4.39853057,4480.8,4480.7,1.17572]
[1759889384074,4.80004057,4480.8,4480.7,1.17572]
[1759889385380,2.90609053,4480.8,4480.7,1.17572]
[1759889385575,0.00205134,4480.8,4480.7,1.17572]
[1759889388283,0.00205134,4480.8,4480.7,6.39872]
[1759889388478,0.00205134,4480.8,4480.7,6.17572]
[1759889388677,0.00205134,4480.8,4480.7,1.39872]
[1759889388880,0.21955134,4480.8,4480.7,1.39872]
[1759889389379,0.21955134,4480.8,4480.7,42.19872]
[1759889389685,0.21955134,4480.8,4480.7,1.39872]
[1759889389878,0.00205134,4480.8,4480.7,1.39872]
[1759889390680,0.21955134,4480.8,4480.7,1.17572]
[1759889390884,0.21955134,4480.8,4480.7,1.39872]
[1759889391585,0.00205134,4480.8,4480.7,1.39872]
[1759889393485,0.00205134,4480.8,4480.7,6.39872]
[1759889400796,0.21415134,4480.8,4480.7,1.17572]
[1759889400995,0.73935134,4480.8,4480.7,1.17572]
[1759889401195,0.73935134,4480.8,4480.7,0.74022]
[1759889401887,0.73935134,4480.8,4480.7,0.95132]
[1759889402391,0.42265134,4480.8,4480.7,1.16182]
[1759889402583,0.21415134,4480.8,4480.7,1.16182]
[1759889406196,0.00205134,4480.8,4480.7,1.16182]
[1759889406601,0.21415134,4480.8,4480.7,1.16182]
[1759889409497,0.73935134,4480.8,4480.7,1.16182]
[1759889412200,0.73935134,4480.8,4480.7,0.40152]
[1759889412798,0.73935134,4480.8,4480.7,0.94352]
[1759889413600,1.13872,4481.8,4481.7,0.40143]
[1759889413790,1.24190386,4481.8,4481.7,1.15393]
[1759889413993,3.3390791,4481.8,4481.7,4.36173]
[1759889414292,1.59944956,4482.9,4482.5,1.15386]
[1759889414293,0.7373,4482.6,4482.5,1.15386]
[1759889414492,0.125,4483.0,4482.5,1.28086]
[1759889414493,0.3167,4483.0,4482.5,1.28086]
[1759889414693,0.00188296,4483.0,4482.9,1.15382]
[1759889415102,2.92603598,4483.0,4482.9,1.15382]
[1759889416101,3.13813598,4483.0,4482.9,1.15382]
[1759889417101,0.00188296,4483.0,4482.9,1.15382]
[1759889417406,0.4206,4484.1,4484.0,1.28072]
[1759889417601,1.19723811,4484.8,4484.2,1.1537]
[1759889417791,0.2121,4485.2,4485.1,0.4216]
[1759889417992,0.7373,4485.2,4485.1,0.542]
[1759889418297,3.67041963,4484.9,4484.8,0.542]
[1759889418497,3.33706484,4485.2,4484.3,0.223]
[1759889418498,0.7373,4484.4,4484.3,0.3309]
[1759889418699,0.7373,4484.3,4484.2,0.3309]
[1759889418897,0.7373,4484.3,4484.2,0.7525]
[1759889419097,3.67041963,4484.3,4484.2,0.7525]
[1759889419702,3.67041963,4484.3,4484.2,1.1537]
[1759889419900,3.67041963,4484.3,4484.2,0.2111]
[1759889420092,3.67041963,4484.3,4484.2,0.542]
[1759889422705,0.7373,4484.2,4484.1,0.40121]
[1759889423204,3.58012646,4484.2,4484.1,0.40121]
[1759889423407,3.58012646,4484.2,4484.1,1.15371]
[1759889423408,3.26342646,4484.2,4484.1,1.15371]
[1759889423908,3.58012646,4484.2,4484.1,1.15371]
[1759889425004,3.26342646,4484.2,4483.9,0.40123]
[1759889425204,0.4206,4484.0,4483.9,1.15373]
[1759889426007,2.84282646,4484.2,4484.1,0.40121]
[1759889426307,0.2121,4484.7,4484.6,1.15366]
[1759889426508,0.4351,4484.7,4484.6,1.15366]
[1759889426701,3.35872255,4484.7,4484.6,1.15366]
[1759889427103,3.56722255,4484.7,4484.6,1.15366]
[1759889427407,3.35872255,4484.7,4484.6,1.15366]
[1759889427609,3.90682255,4484.7,4484.6,1.15366]
[1759889427906,3.90682255,4484.7,4484.6,1.15367]
[1759889429508,3.57162255,4484.7,4484.6,1.15367]
[1759889430007,3.25882255,4484.7,4484.6,0.7431]
[1759889430211,0.62567,4484.6,4484.5,1.27378]
[1759889430410,0.2245,4484.6,4484.5,1.27378]
[1759889430611,3.12948932,4484.6,4484.5,1.27378]
[1759889432001,3.67758932,4484.6,4484.5,1.14248]
[1759889432206,3.67758932,4484.6,4484.5,0.73028]
[1759889432513,3.67758932,4484.6,4484.5,0.40118]
[1759889432810,3.67758932,4484.6,4484.5,0.93548]
[1759889434010,4.07875932,4484.6,4484.5,0.93548]
[1759889435211,3.67758932,4484.6,4484.5,0.93548]
[1759889435410,3.67758932,4484.6,4484.5,1.14248]
[1759889435813,4.07875932,4484.6,4484.5,1.14248]
[1759889437308,4.07875932,4484.6,4484.5,1.27378]
[1759889438719,0.4374,4485.1,4485.0,0.81333]
[1759889438920,0.4475,4485.1,4485.0,1.27373]
[1759889439112,3.75994886,4485.1,4485.0,1.27373]
[1759889439307,2.91132886,4485.1,4485.0,1.27373]
[1759889440114,3.13532886,4485.1,4485.0,1.27373]
[1759889441616,2.91132886,4485.1,4485.0,1.27373]
[1759889443114,3.13532886,4485.1,4485.0,2.03201247]
[1759889443318,4.19586095,4485.1,4485.0,0.7413]
[1759889444814,4.19586095,4485.1,4485.0,0.8704]
[1759889445921,4.59698095,4485.1,4485.0,1.27153]
[1759889446725,4.59698095,4485.1,4485.0,0.5343]
[1759889446927,0.783,4483.8,4483.7,3.82194]
[1759889447115,0.224,4483.4,4483.3,0.40128]
[1759889447315,0.783,4483.4,4483.3,0.73148]
[1759889447522,1.28583781,4483.4,4483.3,0.94438]
[1759889448226,1.18428,4483.4,4483.3,0.94438]
[1759889448625,0.783,4483.4,4483.3,0.94438]
[1759889449026,1.28569779,4483.4,4483.3,0.94438]
[1759889450121,1.28569779,4483.4,4483.3,0.5431]
[1759889450327,0.783,4483.1,4483.0,4.28131]
[1759889450720,3.73301927,4483.1,4483.0,4.50051]
[1759889450920,0.4462,4482.6,4482.4,3.96608247]
[1759889451124,0.783,4482.6,4482.5,0.54516387]
[1759889451324,3.67794825,4482.6,4482.5,0.76436387]
[1759889451629,0.40129,4483.3,4483.1,0.4321]
[1759889451821,0.40127,4483.5,4483.2,1.52058247]
[1759889452025,4.24534979,4483.4,4483.3,0.7623]
[1759889452233,1.57260154,4483.4,4483.3,0.7623]
[1759889452424,4.8649791,4483.4,4483.3,0.7623]
[1759889454531,4.8649791,4483.4,4483.3,0.3302]
[1759889454727,4.8649791,4483.4,4482.9,0.75828247]
[1759889454728,0.8475,4483.1,4482.9,0.40132]
[1759889454922,0.783,4482.7,4482.6,0.3302]
[1759889455123,1.006,4482.7,4482.6,0.3302]
[1759889455323,3.94146475,4482.7,4482.6,0.3302]
[1759889455528,3.94146475,4482.7,4482.6,0.5431]
[1759889455724,3.94146475,4482.7,4482.6,0.94444]
[1759889456033,3.94146475,4482.7,4482.6,1.16364]
[1759889457034,2.93546475,4482.7,4482.6,1.92192247]
[1759889457338,3.9514,4483.6,4483.5,0.5125]
[1759889457537,4.67567634,4483.6,4483.5,0.5125]
[1759889457744,4.67567634,4483.6,4483.1,1.1357]
[1759889457745,0.61839,4483.2,4483.1,1.1357]
[1759889457933,0.84139,4483.2,4483.1,1.1357]
[1759889458133,3.67471906,4483.2,4483.1,1.1357]
[1759889458330,3.67471906,4483.2,4483.1,0.7344]
[1759889458640,4.20121906,4483.2,4483.1,0.7344]
[1759889458835,0.40133,4482.8,4482.5,0.76034634]
[1759889459029,0.7436,4482.6,4482.5,1.67420634]
[1759889459435,0.7436,4482.6,4482.5,1.89610634]
[1759889459942,0.2171,4482.6,4482.5,2.02030634]
[1759889460137,0.40134,4482.7,4482.6,0.60575]
[1759889460339,0.4325,4482.7,4482.6,1.13575]
[1759889460539,1.36794,4482.7,4482.6,1.13575]
[1759889461845,0.4325,4482.7,4482.6,1.13575]
[1759889462141,0.2171,4482.7,4482.6,1.13575]
[1759889463636,0.4325,4482.7,4482.6,1.13575]
[1759889464847,0.2171,4482.7,4482.6,1.13575]
[1759889465441,0.4325,4482.7,4482.6,1.13575]
[1759889465747,1.14494,4482.7,4482.6,1.13575]
[1759889466344,4.07305115,4482.7,4482.6,1.13575]
[1759889467043,3.36061115,4482.7,4482.6,1.13575]
[1759889469149,3.67171115,4482.7,4482.6,1.13575]
[1759889469348,1.14495,4482.6,4482.5,0.40341387]
[1759889469648,3.69659347,4482.6,4482.5,1.67419634]
[1759889469850,3.69659347,4482.6,4482.5,1.89609634]